{"text_format":"3","workbook":"xlsx","n_sheets":2,"sheets":["Údaje o uchádzačoch","Porovnávacie údaje uchádzačov"],"not_rendered":{"defined_names":4},"read":"whole","date_system":"1900"}

{"sheet":"Údaje o uchádzačoch","index":0,"n_rows":2,"n_cols":13,"rows_kept":2,"merged":[[0,0,0,3]]}
["Údaje o uchádzačovi"]
["Priezvisko","Meno","M.I.","Žiadaná pozícia","Stav žiadosti","Poštová adresa","Telefón domov","Alternatívne telefónne číslo","E-mailová adresa","Zdroj žiadosti","Dátum prijatia životopisu","Meno náborového pracovníka","Poznámky náborového pracovníka"]

{"sheet":"Porovnávacie údaje uchádzačov","index":1,"n_rows":59,"n_cols":12,"rows_kept":59,"merged":[[0,0,0,3]]}
["Porovnávacie údaje o uchádzačoch"]
["Priezvisko","Meno","M.I.","Žiadaná pozícia","Aktuálny zamestnávateľ","Aktuálna pozícia","Vzdelanie","Aktuálny stav víza","Počet rokov relevantných skúseností","Súvisiace zručnosti a skúsenosti","Meno náborového pracovníka","Poznámky náborového pracovníka"]
[{"$f":"IF('Údaje o uchádzačoch'!A3=\"\",\"\",'Údaje o uchádzačoch'!A3)","v":""},{"$f":"IF('Údaje o uchádzačoch'!B3=\"\",\"\",'Údaje o uchádzačoch'!B3)","v":""},{"$f":"IF('Údaje o uchádzačoch'!C3=\"\",\"\",'Údaje o uchádzačoch'!C3)","v":""},{"$f":"IF('Údaje o uchádzačoch'!D3=\"\",\"\",'Údaje o uchádzačoch'!D3)","v":""},{"$nulls":6},{"$f":"IF('Údaje o uchádzačoch'!L3=\"\",\"\",'Údaje o uchádzačoch'!L3)","v":""},{"$f":"IF('Údaje o uchádzačoch'!M3=\"\",\"\",'Údaje o uchádzačoch'!M3)","v":""}]
[{"$f":"IF('Údaje o uchádzačoch'!A4=\"\",\"\",'Údaje o uchádzačoch'!A4)","v":""},{"$f":"IF('Údaje o uchádzačoch'!B4=\"\",\"\",'Údaje o uchádzačoch'!B4)","v":""},{"$f":"IF('Údaje o uchádzačoch'!C4=\"\",\"\",'Údaje o uchádzačoch'!C4)","v":""},{"$f":"IF('Údaje o uchádzačoch'!D4=\"\",\"\",'Údaje o uchádzačoch'!D4)","v":""},{"$nulls":6},{"$f":"IF('Údaje o uchádzačoch'!L4=\"\",\"\",'Údaje o uchádzačoch'!L4)","v":""},{"$f":"IF('Údaje o uchádzačoch'!M4=\"\",\"\",'Údaje o uchádzačoch'!M4)","v":""}]
[{"$f":"IF('Údaje o uchádzačoch'!A5=\"\",\"\",'Údaje o uchádzačoch'!A5)","v":""},{"$f":"IF('Údaje o uchádzačoch'!B5=\"\",\"\",'Údaje o uchádzačoch'!B5)","v":""},{"$f":"IF('Údaje o uchádzačoch'!C5=\"\",\"\",'Údaje o uchádzačoch'!C5)","v":""},{"$f":"IF('Údaje o uchádzačoch'!D5=\"\",\"\",'Údaje o uchádzačoch'!D5)","v":""},{"$nulls":6},{"$f":"IF('Údaje o uchádzačoch'!L5=\"\",\"\",'Údaje o uchádzačoch'!L5)","v":""},{"$f":"IF('Údaje o uchádzačoch'!M5=\"\",\"\",'Údaje o uchádzačoch'!M5)","v":""}]
[{"$f":"IF('Údaje o uchádzačoch'!A6=\"\",\"\",'Údaje o uchádzačoch'!A6)","v":""},{"$f":"IF('Údaje o uchádzačoch'!B6=\"\",\"\",'Údaje o uchádzačoch'!B6)","v":""},{"$f":"IF('Údaje o uchádzačoch'!C6=\"\",\"\",'Údaje o uchádzačoch'!C6)","v":""},{"$f":"IF('Údaje o uchádzačoch'!D6=\"\",\"\",'Údaje o uchádzačoch'!D6)","v":""},{"$nulls":6},{"$f":"IF('Údaje o uchádzačoch'!L6=\"\",\"\",'Údaje o uchádzačoch'!L6)","v":""},{"$f":"IF('Údaje o uchádzačoch'!M6=\"\",\"\",'Údaje o uchádzačoch'!M6)","v":""}]
[{"$f":"IF('Údaje o uchádzačoch'!A7=\"\",\"\",'Údaje o uchádzačoch'!A7)","v":""},{"$f":"IF('Údaje o uchádzačoch'!B7=\"\",\"\",'Údaje o uchádzačoch'!B7)","v":""},{"$f":"IF('Údaje o uchádzačoch'!C7=\"\",\"\",'Údaje o uchádzačoch'!C7)","v":""},{"$f":"IF('Údaje o uchádzačoch'!D7=\"\",\"\",'Údaje o uchádzačoch'!D7)","v":""},{"$nulls":6},{"$f":"IF('Údaje o uchádzačoch'!L7=\"\",\"\",'Údaje o uchádzačoch'!L7)","v":""},{"$f":"IF('Údaje o uchádzačoch'!M7=\"\",\"\",'Údaje o uchádzačoch'!M7)","v":""}]
[{"$f":"IF('Údaje o uchádzačoch'!A8=\"\",\"\",'Údaje o uchádzačoch'!A8)","v":""},{"$f":"IF('Údaje o uchádzačoch'!B8=\"\",\"\",'Údaje o uchádzačoch'!B8)","v":""},{"$f":"IF('Údaje o uchádzačoch'!C8=\"\",\"\",'Údaje o uchádzačoch'!C8)","v":""},{"$f":"IF('Údaje o uchádzačoch'!D8=\"\",\"\",'Údaje o uchádzačoch'!D8)","v":""},{"$nulls":6},{"$f":"IF('Údaje o uchádzačoch'!L8=\"\",\"\",'Údaje o uchádzačoch'!L8)","v":""},{"$f":"IF('Údaje o uchádzačoch'!M8=\"\",\"\",'Údaje o uchádzačoch'!M8)","v":""}]
[{"$f":"IF('Údaje o uchádzačoch'!A9=\"\",\"\",'Údaje o uchádzačoch'!A9)","v":""},{"$f":"IF('Údaje o uchádzačoch'!B9=\"\",\"\",'Údaje o uchádzačoch'!B9)","v":""},{"$f":"IF('Údaje o uchádzačoch'!C9=\"\",\"\",'Údaje o uchádzačoch'!C9)","v":""},{"$f":"IF('Údaje o uchádzačoch'!D9=\"\",\"\",'Údaje o uchádzačoch'!D9)","v":""},{"$nulls":6},{"$f":"IF('Údaje o uchádzačoch'!L9=\"\",\"\",'Údaje o uchádzačoch'!L9)","v":""},{"$f":"IF('Údaje o uchádzačoch'!M9=\"\",\"\",'Údaje o uchádzačoch'!M9)","v":""}]
[{"$f":"IF('Údaje o uchádzačoch'!A10=\"\",\"\",'Údaje o uchádzačoch'!A10)","v":""},{"$f":"IF('Údaje o uchádzačoch'!B10=\"\",\"\",'Údaje o uchádzačoch'!B10)","v":""},{"$f":"IF('Údaje o uchádzačoch'!C10=\"\",\"\",'Údaje o uchádzačoch'!C10)","v":""},{"$f":"IF('Údaje o uchádzačoch'!D10=\"\",\"\",'Údaje o uchádzačoch'!D10)","v":""},{"$nulls":6},{"$f":"IF('Údaje o uchádzačoch'!L10=\"\",\"\",'Údaje o uchádzačoch'!L10)","v":""},{"$f":"IF('Údaje o uchádzačoch'!M10=\"\",\"\",'Údaje o uchádzačoch'!M10)","v":""}]
[{"$f":"IF('Údaje o uchádzačoch'!A11=\"\",\"\",'Údaje o uchádzačoch'!A11)","v":""},{"$f":"IF('Údaje o uchádzačoch'!B11=\"\",\"\",'Údaje o uchádzačoch'!B11)","v":""},{"$f":"IF('Údaje o uchádzačoch'!C11=\"\",\"\",'Údaje o uchádzačoch'!C11)","v":""},{"$f":"IF('Údaje o uchádzačoch'!D11=\"\",\"\",'Údaje o uchádzačoch'!D11)","v":""},{"$nulls":6},{"$f":"IF('Údaje o uchádzačoch'!L11=\"\",\"\",'Údaje o uchádzačoch'!L11)","v":""},{"$f":"IF('Údaje o uchádzačoch'!M11=\"\",\"\",'Údaje o uchádzačoch'!M11)","v":""}]
[{"$f":"IF('Údaje o uchádzačoch'!A12=\"\",\"\",'Údaje o uchádzačoch'!A12)","v":""},{"$f":"IF('Údaje o uchádzačoch'!B12=\"\",\"\",'Údaje o uchádzačoch'!B12)","v":""},{"$f":"IF('Údaje o uchádzačoch'!C12=\"\",\"\",'Údaje o uchádzačoch'!C12)","v":""},{"$f":"IF('Údaje o uchádzačoch'!D12=\"\",\"\",'Údaje o uchádzačoch'!D12)","v":""},{"$nulls":6},{"$f":"IF('Údaje o uchádzačoch'!L12=\"\",\"\",'Údaje o uchádzačoch'!L12)","v":""},{"$f":"IF('Údaje o uchádzačoch'!M12=\"\",\"\",'Údaje o uchádzačoch'!M12)","v":""}]
[{"$f":"IF('Údaje o uchádzačoch'!A13=\"\",\"\",'Údaje o uchádzačoch'!A13)","v":""},{"$f":"IF('Údaje o uchádzačoch'!B13=\"\",\"\",'Údaje o uchádzačoch'!B13)","v":""},{"$f":"IF('Údaje o uchádzačoch'!C13=\"\",\"\",'Údaje o uchádzačoch'!C13)","v":""},{"$f":"IF('Údaje o uchádzačoch'!D13=\"\",\"\",'Údaje o uchádzačoch'!D13)","v":""},{"$nulls":6},{"$f":"IF('Údaje o uchádzačoch'!L13=\"\",\"\",'Údaje o uchádzačoch'!L13)","v":""},{"$f":"IF('Údaje o uchádzačoch'!M13=\"\",\"\",'Údaje o uchádzačoch'!M13)","v":""}]
[{"$f":"IF('Údaje o uchádzačoch'!A14=\"\",\"\",'Údaje o uchádzačoch'!A14)","v":""},{"$f":"IF('Údaje o uchádzačoch'!B14=\"\",\"\",'Údaje o uchádzačoch'!B14)","v":""},{"$f":"IF('Údaje o uchádzačoch'!C14=\"\",\"\",'Údaje o uchádzačoch'!C14)","v":""},{"$f":"IF('Údaje o uchádzačoch'!D14=\"\",\"\",'Údaje o uchádzačoch'!D14)","v":""},{"$nulls":6},{"$f":"IF('Údaje o uchádzačoch'!L14=\"\",\"\",'Údaje o uchádzačoch'!L14)","v":""},{"$f":"IF('Údaje o uchádzačoch'!M14=\"\",\"\",'Údaje o uchádzačoch'!M14)","v":""}]
[{"$f":"IF('Údaje o uchádzačoch'!A15=\"\",\"\",'Údaje o uchádzačoch'!A15)","v":""},{"$f":"IF('Údaje o uchádzačoch'!B15=\"\",\"\",'Údaje o uchádzačoch'!B15)","v":""},{"$f":"IF('Údaje o uchádzačoch'!C15=\"\",\"\",'Údaje o uchádzačoch'!C15)","v":""},{"$f":"IF('Údaje o uchádzačoch'!D15=\"\",\"\",'Údaje o uchádzačoch'!D15)","v":""},{"$nulls":6},{"$f":"IF('Údaje o uchádzačoch'!L15=\"\",\"\",'Údaje o uchádzačoch'!L15)","v":""},{"$f":"IF('Údaje o uchádzačoch'!M15=\"\",\"\",'Údaje o uchádzačoch'!M15)","v":""}]
[{"$f":"IF('Údaje o uchádzačoch'!A16=\"\",\"\",'Údaje o uchádzačoch'!A16)","v":""},{"$f":"IF('Údaje o uchádzačoch'!B16=\"\",\"\",'Údaje o uchádzačoch'!B16)","v":""},{"$f":"IF('Údaje o uchádzačoch'!C16=\"\",\"\",'Údaje o uchádzačoch'!C16)","v":""},{"$f":"IF('Údaje o uchádzačoch'!D16=\"\",\"\",'Údaje o uchádzačoch'!D16)","v":""},{"$nulls":6},{"$f":"IF('Údaje o uchádzačoch'!L16=\"\",\"\",'Údaje o uchádzačoch'!L16)","v":""},{"$f":"IF('Údaje o uchádzačoch'!M16=\"\",\"\",'Údaje o uchádzačoch'!M16)","v":""}]
[{"$f":"IF('Údaje o uchádzačoch'!A17=\"\",\"\",'Údaje o uchádzačoch'!A17)","v":""},{"$f":"IF('Údaje o uchádzačoch'!B17=\"\",\"\",'Údaje o uchádzačoch'!B17)","v":""},{"$f":"IF('Údaje o uchádzačoch'!C17=\"\",\"\",'Údaje o uchádzačoch'!C17)","v":""},{"$f":"IF('Údaje o uchádzačoch'!D17=\"\",\"\",'Údaje o uchádzačoch'!D17)","v":""},{"$nulls":6},{"$f":"IF('Údaje o uchádzačoch'!L17=\"\",\"\",'Údaje o uchádzačoch'!L17)","v":""},{"$f":"IF('Údaje o uchádzačoch'!M17=\"\",\"\",'Údaje o uchádzačoch'!M17)","v":""}]
[{"$f":"IF('Údaje o uchádzačoch'!A18=\"\",\"\",'Údaje o uchádzačoch'!A18)","v":""},{"$f":"IF('Údaje o uchádzačoch'!B18=\"\",\"\",'Údaje o uchádzačoch'!B18)","v":""},{"$f":"IF('Údaje o uchádzačoch'!C18=\"\",\"\",'Údaje o uchádzačoch'!C18)","v":""},{"$f":"IF('Údaje o uchádzačoch'!D18=\"\",\"\",'Údaje o uchádzačoch'!D18)","v":""},{"$nulls":6},{"$f":"IF('Údaje o uchádzačoch'!L18=\"\",\"\",'Údaje o uchádzačoch'!L18)","v":""},{"$f":"IF('Údaje o uchádzačoch'!M18=\"\",\"\",'Údaje o uchádzačoch'!M18)","v":""}]
[{"$f":"IF('Údaje o uchádzačoch'!A19=\"\",\"\",'Údaje o uchádzačoch'!A19)","v":""},{"$f":"IF('Údaje o uchádzačoch'!B19=\"\",\"\",'Údaje o uchádzačoch'!B19)","v":""},{"$f":"IF('Údaje o uchádzačoch'!C19=\"\",\"\",'Údaje o uchádzačoch'!C19)","v":""},{"$f":"IF('Údaje o uchádzačoch'!D19=\"\",\"\",'Údaje o uchádzačoch'!D19)","v":""},{"$nulls":6},{"$f":"IF('Údaje o uchádzačoch'!L19=\"\",\"\",'Údaje o uchádzačoch'!L19)","v":""},{"$f":"IF('Údaje o uchádzačoch'!M19=\"\",\"\",'Údaje o uchádzačoch'!M19)","v":""}]
[{"$f":"IF('Údaje o uchádzačoch'!A20=\"\",\"\",'Údaje o uchádzačoch'!A20)","v":""},{"$f":"IF('Údaje o uchádzačoch'!B20=\"\",\"\",'Údaje o uchádzačoch'!B20)","v":""},{"$f":"IF('Údaje o uchádzačoch'!C20=\"\",\"\",'Údaje o uchádzačoch'!C20)","v":""},{"$f":"IF('Údaje o uchádzačoch'!D20=\"\",\"\",'Údaje o uchádzačoch'!D20)","v":""},{"$nulls":6},{"$f":"IF('Údaje o uchádzačoch'!L20=\"\",\"\",'Údaje o uchádzačoch'!L20)","v":""},{"$f":"IF('Údaje o uchádzačoch'!M20=\"\",\"\",'Údaje o uchádzačoch'!M20)","v":""}]
[{"$f":"IF('Údaje o uchádzačoch'!A21=\"\",\"\",'Údaje o uchádzačoch'!A21)","v":""},{"$f":"IF('Údaje o uchádzačoch'!B21=\"\",\"\",'Údaje o uchádzačoch'!B21)","v":""},{"$f":"IF('Údaje o uchádzačoch'!C21=\"\",\"\",'Údaje o uchádzačoch'!C21)","v":""},{"$f":"IF('Údaje o uchádzačoch'!D21=\"\",\"\",'Údaje o uchádzačoch'!D21)","v":""},{"$nulls":6},{"$f":"IF('Údaje o uchádzačoch'!L21=\"\",\"\",'Údaje o uchádzačoch'!L21)","v":""},{"$f":"IF('Údaje o uchádzačoch'!M21=\"\",\"\",'Údaje o uchádzačoch'!M21)","v":""}]
[{"$f":"IF('Údaje o uchádzačoch'!A22=\"\",\"\",'Údaje o uchádzačoch'!A22)","v":""},{"$f":"IF('Údaje o uchádzačoch'!B22=\"\",\"\",'Údaje o uchádzačoch'!B22)","v":""},{"$f":"IF('Údaje o uchádzačoch'!C22=\"\",\"\",'Údaje o uchádzačoch'!C22)","v":""},{"$f":"IF('Údaje o uchádzačoch'!D22=\"\",\"\",'Údaje o uchádzačoch'!D22)","v":""},{"$nulls":6},{"$f":"IF('Údaje o uchádzačoch'!L22=\"\",\"\",'Údaje o uchádzačoch'!L22)","v":""},{"$f":"IF('Údaje o uchádzačoch'!M22=\"\",\"\",'Údaje o uchádzačoch'!M22)","v":""}]
[{"$f":"IF('Údaje o uchádzačoch'!A23=\"\",\"\",'Údaje o uchádzačoch'!A23)","v":""},{"$f":"IF('Údaje o uchádzačoch'!B23=\"\",\"\",'Údaje o uchádzačoch'!B23)","v":""},{"$f":"IF('Údaje o uchádzačoch'!C23=\"\",\"\",'Údaje o uchádzačoch'!C23)","v":""},{"$f":"IF('Údaje o uchádzačoch'!D23=\"\",\"\",'Údaje o uchádzačoch'!D23)","v":""},{"$nulls":6},{"$f":"IF('Údaje o uchádzačoch'!L23=\"\",\"\",'Údaje o uchádzačoch'!L23)","v":""},{"$f":"IF('Údaje o uchádzačoch'!M23=\"\",\"\",'Údaje o uchádzačoch'!M23)","v":""}]
[{"$f":"IF('Údaje o uchádzačoch'!A24=\"\",\"\",'Údaje o uchádzačoch'!A24)","v":""},{"$f":"IF('Údaje o uchádzačoch'!B24=\"\",\"\",'Údaje o uchádzačoch'!B24)","v":""},{"$f":"IF('Údaje o uchádzačoch'!C24=\"\",\"\",'Údaje o uchádzačoch'!C24)","v":""},{"$f":"IF('Údaje o uchádzačoch'!D24=\"\",\"\",'Údaje o uchádzačoch'!D24)","v":""},{"$nulls":6},{"$f":"IF('Údaje o uchádzačoch'!L24=\"\",\"\",'Údaje o uchádzačoch'!L24)","v":""},{"$f":"IF('Údaje o uchádzačoch'!M24=\"\",\"\",'Údaje o uchádzačoch'!M24)","v":""}]
[{"$f":"IF('Údaje o uchádzačoch'!A25=\"\",\"\",'Údaje o uchádzačoch'!A25)","v":""},{"$f":"IF('Údaje o uchádzačoch'!B25=\"\",\"\",'Údaje o uchádzačoch'!B25)","v":""},{"$f":"IF('Údaje o uchádzačoch'!C25=\"\",\"\",'Údaje o uchádzačoch'!C25)","v":""},{"$f":"IF('Údaje o uchádzačoch'!D25=\"\",\"\",'Údaje o uchádzačoch'!D25)","v":""},{"$nulls":6},{"$f":"IF('Údaje o uchádzačoch'!L25=\"\",\"\",'Údaje o uchádzačoch'!L25)","v":""},{"$f":"IF('Údaje o uchádzačoch'!M25=\"\",\"\",'Údaje o uchádzačoch'!M25)","v":""}]
[{"$f":"IF('Údaje o uchádzačoch'!A26=\"\",\"\",'Údaje o uchádzačoch'!A26)","v":""},{"$f":"IF('Údaje o uchádzačoch'!B26=\"\",\"\",'Údaje o uchádzačoch'!B26)","v":""},{"$f":"IF('Údaje o uchádzačoch'!C26=\"\",\"\",'Údaje o uchádzačoch'!C26)","v":""},{"$f":"IF('Údaje o uchádzačoch'!D26=\"\",\"\",'Údaje o uchádzačoch'!D26)","v":""},{"$nulls":6},{"$f":"IF('Údaje o uchádzačoch'!L26=\"\",\"\",'Údaje o uchádzačoch'!L26)","v":""},{"$f":"IF('Údaje o uchádzačoch'!M26=\"\",\"\",'Údaje o uchádzačoch'!M26)","v":""}]
[{"$f":"IF('Údaje o uchádzačoch'!A27=\"\",\"\",'Údaje o uchádzačoch'!A27)","v":""},{"$f":"IF('Údaje o uchádzačoch'!B27=\"\",\"\",'Údaje o uchádzačoch'!B27)","v":""},{"$f":"IF('Údaje o uchádzačoch'!C27=\"\",\"\",'Údaje o uchádzačoch'!C27)","v":""},{"$f":"IF('Údaje o uchádzačoch'!D27=\"\",\"\",'Údaje o uchádzačoch'!D27)","v":""},{"$nulls":6},{"$f":"IF('Údaje o uchádzačoch'!L27=\"\",\"\",'Údaje o uchádzačoch'!L27)","v":""},{"$f":"IF('Údaje o uchádzačoch'!M27=\"\",\"\",'Údaje o uchádzačoch'!M27)","v":""}]
[{"$f":"IF('Údaje o uchádzačoch'!A28=\"\",\"\",'Údaje o uchádzačoch'!A28)","v":""},{"$f":"IF('Údaje o uchádzačoch'!B28=\"\",\"\",'Údaje o uchádzačoch'!B28)","v":""},{"$f":"IF('Údaje o uchádzačoch'!C28=\"\",\"\",'Údaje o uchádzačoch'!C28)","v":""},{"$f":"IF('Údaje o uchádzačoch'!D28=\"\",\"\",'Údaje o uchádzačoch'!D28)","v":""},{"$nulls":6},{"$f":"IF('Údaje o uchádzačoch'!L28=\"\",\"\",'Údaje o uchádzačoch'!L28)","v":""},{"$f":"IF('Údaje o uchádzačoch'!M28=\"\",\"\",'Údaje o uchádzačoch'!M28)","v":""}]
[{"$f":"IF('Údaje o uchádzačoch'!A29=\"\",\"\",'Údaje o uchádzačoch'!A29)","v":""},{"$f":"IF('Údaje o uchádzačoch'!B29=\"\",\"\",'Údaje o uchádzačoch'!B29)","v":""},{"$f":"IF('Údaje o uchádzačoch'!C29=\"\",\"\",'Údaje o uchádzačoch'!C29)","v":""},{"$f":"IF('Údaje o uchádzačoch'!D29=\"\",\"\",'Údaje o uchádzačoch'!D29)","v":""},{"$nulls":6},{"$f":"IF('Údaje o uchádzačoch'!L29=\"\",\"\",'Údaje o uchádzačoch'!L29)","v":""},{"$f":"IF('Údaje o uchádzačoch'!M29=\"\",\"\",'Údaje o uchádzačoch'!M29)","v":""}]
[{"$f":"IF('Údaje o uchádzačoch'!A30=\"\",\"\",'Údaje o uchádzačoch'!A30)","v":""},{"$f":"IF('Údaje o uchádzačoch'!B30=\"\",\"\",'Údaje o uchádzačoch'!B30)","v":""},{"$f":"IF('Údaje o uchádzačoch'!C30=\"\",\"\",'Údaje o uchádzačoch'!C30)","v":""},{"$f":"IF('Údaje o uchádzačoch'!D30=\"\",\"\",'Údaje o uchádzačoch'!D30)","v":""},{"$nulls":6},{"$f":"IF('Údaje o uchádzačoch'!L30=\"\",\"\",'Údaje o uchádzačoch'!L30)","v":""},{"$f":"IF('Údaje o uchádzačoch'!M30=\"\",\"\",'Údaje o uchádzačoch'!M30)","v":""}]
[{"$f":"IF('Údaje o uchádzačoch'!A31=\"\",\"\",'Údaje o uchádzačoch'!A31)","v":""},{"$f":"IF('Údaje o uchádzačoch'!B31=\"\",\"\",'Údaje o uchádzačoch'!B31)","v":""},{"$f":"IF('Údaje o uchádzačoch'!C31=\"\",\"\",'Údaje o uchádzačoch'!C31)","v":""},{"$f":"IF('Údaje o uchádzačoch'!D31=\"\",\"\",'Údaje o uchádzačoch'!D31)","v":""},{"$nulls":6},{"$f":"IF('Údaje o uchádzačoch'!L31=\"\",\"\",'Údaje o uchádzačoch'!L31)","v":""},{"$f":"IF('Údaje o uchádzačoch'!M31=\"\",\"\",'Údaje o uchádzačoch'!M31)","v":""}]
[{"$f":"IF('Údaje o uchádzačoch'!A32=\"\",\"\",'Údaje o uchádzačoch'!A32)","v":""},{"$f":"IF('Údaje o uchádzačoch'!B32=\"\",\"\",'Údaje o uchádzačoch'!B32)","v":""},{"$f":"IF('Údaje o uchádzačoch'!C32=\"\",\"\",'Údaje o uchádzačoch'!C32)","v":""},{"$f":"IF('Údaje o uchádzačoch'!D32=\"\",\"\",'Údaje o uchádzačoch'!D32)","v":""},{"$nulls":6},{"$f":"IF('Údaje o uchádzačoch'!L32=\"\",\"\",'Údaje o uchádzačoch'!L32)","v":""},{"$f":"IF('Údaje o uchádzačoch'!M32=\"\",\"\",'Údaje o uchádzačoch'!M32)","v":""}]
[{"$f":"IF('Údaje o uchádzačoch'!A33=\"\",\"\",'Údaje o uchádzačoch'!A33)","v":""},{"$f":"IF('Údaje o uchádzačoch'!B33=\"\",\"\",'Údaje o uchádzačoch'!B33)","v":""},{"$f":"IF('Údaje o uchádzačoch'!C33=\"\",\"\",'Údaje o uchádzačoch'!C33)","v":""},{"$f":"IF('Údaje o uchádzačoch'!D33=\"\",\"\",'Údaje o uchádzačoch'!D33)","v":""},{"$nulls":6},{"$f":"IF('Údaje o uchádzačoch'!L33=\"\",\"\",'Údaje o uchádzačoch'!L33)","v":""},{"$f":"IF('Údaje o uchádzačoch'!M33=\"\",\"\",'Údaje o uchádzačoch'!M33)","v":""}]
[{"$f":"IF('Údaje o uchádzačoch'!A34=\"\",\"\",'Údaje o uchádzačoch'!A34)","v":""},{"$f":"IF('Údaje o uchádzačoch'!B34=\"\",\"\",'Údaje o uchádzačoch'!B34)","v":""},{"$f":"IF('Údaje o uchádzačoch'!C34=\"\",\"\",'Údaje o uchádzačoch'!C34)","v":""},{"$f":"IF('Údaje o uchádzačoch'!D34=\"\",\"\",'Údaje o uchádzačoch'!D34)","v":""},{"$nulls":6},{"$f":"IF('Údaje o uchádzačoch'!L34=\"\",\"\",'Údaje o uchádzačoch'!L34)","v":""},{"$f":"IF('Údaje o uchádzačoch'!M34=\"\",\"\",'Údaje o uchádzačoch'!M34)","v":""}]
[{"$f":"IF('Údaje o uchádzačoch'!A35=\"\",\"\",'Údaje o uchádzačoch'!A35)","v":""},{"$f":"IF('Údaje o uchádzačoch'!B35=\"\",\"\",'Údaje o uchádzačoch'!B35)","v":""},{"$f":"IF('Údaje o uchádzačoch'!C35=\"\",\"\",'Údaje o uchádzačoch'!C35)","v":""},{"$f":"IF('Údaje o uchádzačoch'!D35=\"\",\"\",'Údaje o uchádzačoch'!D35)","v":""},{"$nulls":6},{"$f":"IF('Údaje o uchádzačoch'!L35=\"\",\"\",'Údaje o uchádzačoch'!L35)","v":""},{"$f":"IF('Údaje o uchádzačoch'!M35=\"\",\"\",'Údaje o uchádzačoch'!M35)","v":""}]
[{"$f":"IF('Údaje o uchádzačoch'!A36=\"\",\"\",'Údaje o uchádzačoch'!A36)","v":""},{"$f":"IF('Údaje o uchádzačoch'!B36=\"\",\"\",'Údaje o uchádzačoch'!B36)","v":""},{"$f":"IF('Údaje o uchádzačoch'!C36=\"\",\"\",'Údaje o uchádzačoch'!C36)","v":""},{"$f":"IF('Údaje o uchádzačoch'!D36=\"\",\"\",'Údaje o uchádzačoch'!D36)","v":""},{"$nulls":6},{"$f":"IF('Údaje o uchádzačoch'!L36=\"\",\"\",'Údaje o uchádzačoch'!L36)","v":""},{"$f":"IF('Údaje o uchádzačoch'!M36=\"\",\"\",'Údaje o uchádzačoch'!M36)","v":""}]
[{"$f":"IF('Údaje o uchádzačoch'!A37=\"\",\"\",'Údaje o uchádzačoch'!A37)","v":""},{"$f":"IF('Údaje o uchádzačoch'!B37=\"\",\"\",'Údaje o uchádzačoch'!B37)","v":""},{"$f":"IF('Údaje o uchádzačoch'!C37=\"\",\"\",'Údaje o uchádzačoch'!C37)","v":""},{"$f":"IF('Údaje o uchádzačoch'!D37=\"\",\"\",'Údaje o uchádzačoch'!D37)","v":""},{"$nulls":6},{"$f":"IF('Údaje o uchádzačoch'!L37=\"\",\"\",'Údaje o uchádzačoch'!L37)","v":""},{"$f":"IF('Údaje o uchádzačoch'!M37=\"\",\"\",'Údaje o uchádzačoch'!M37)","v":""}]
[{"$f":"IF('Údaje o uchádzačoch'!A38=\"\",\"\",'Údaje o uchádzačoch'!A38)","v":""},{"$f":"IF('Údaje o uchádzačoch'!B38=\"\",\"\",'Údaje o uchádzačoch'!B38)","v":""},{"$f":"IF('Údaje o uchádzačoch'!C38=\"\",\"\",'Údaje o uchádzačoch'!C38)","v":""},{"$f":"IF('Údaje o uchádzačoch'!D38=\"\",\"\",'Údaje o uchádzačoch'!D38)","v":""},{"$nulls":6},{"$f":"IF('Údaje o uchádzačoch'!L38=\"\",\"\",'Údaje o uchádzačoch'!L38)","v":""},{"$f":"IF('Údaje o uchádzačoch'!M38=\"\",\"\",'Údaje o uchádzačoch'!M38)","v":""}]
[{"$f":"IF('Údaje o uchádzačoch'!A39=\"\",\"\",'Údaje o uchádzačoch'!A39)","v":""},{"$f":"IF('Údaje o uchádzačoch'!B39=\"\",\"\",'Údaje o uchádzačoch'!B39)","v":""},{"$f":"IF('Údaje o uchádzačoch'!C39=\"\",\"\",'Údaje o uchádzačoch'!C39)","v":""},{"$f":"IF('Údaje o uchádzačoch'!D39=\"\",\"\",'Údaje o uchádzačoch'!D39)","v":""},{"$nulls":6},{"$f":"IF('Údaje o uchádzačoch'!L39=\"\",\"\",'Údaje o uchádzačoch'!L39)","v":""},{"$f":"IF('Údaje o uchádzačoch'!M39=\"\",\"\",'Údaje o uchádzačoch'!M39)","v":""}]
[{"$f":"IF('Údaje o uchádzačoch'!A40=\"\",\"\",'Údaje o uchádzačoch'!A40)","v":""},{"$f":"IF('Údaje o uchádzačoch'!B40=\"\",\"\",'Údaje o uchádzačoch'!B40)","v":""},{"$f":"IF('Údaje o uchádzačoch'!C40=\"\",\"\",'Údaje o uchádzačoch'!C40)","v":""},{"$f":"IF('Údaje o uchádzačoch'!D40=\"\",\"\",'Údaje o uchádzačoch'!D40)","v":""},{"$nulls":6},{"$f":"IF('Údaje o uchádzačoch'!L40=\"\",\"\",'Údaje o uchádzačoch'!L40)","v":""},{"$f":"IF('Údaje o uchádzačoch'!M40=\"\",\"\",'Údaje o uchádzačoch'!M40)","v":""}]
[{"$f":"IF('Údaje o uchádzačoch'!A41=\"\",\"\",'Údaje o uchádzačoch'!A41)","v":""},{"$f":"IF('Údaje o uchádzačoch'!B41=\"\",\"\",'Údaje o uchádzačoch'!B41)","v":""},{"$f":"IF('Údaje o uchádzačoch'!C41=\"\",\"\",'Údaje o uchádzačoch'!C41)","v":""},{"$f":"IF('Údaje o uchádzačoch'!D41=\"\",\"\",'Údaje o uchádzačoch'!D41)","v":""},{"$nulls":6},{"$f":"IF('Údaje o uchádzačoch'!L41=\"\",\"\",'Údaje o uchádzačoch'!L41)","v":""},{"$f":"IF('Údaje o uchádzačoch'!M41=\"\",\"\",'Údaje o uchádzačoch'!M41)","v":""}]
[{"$f":"IF('Údaje o uchádzačoch'!A42=\"\",\"\",'Údaje o uchádzačoch'!A42)","v":""},{"$f":"IF('Údaje o uchádzačoch'!B42=\"\",\"\",'Údaje o uchádzačoch'!B42)","v":""},{"$f":"IF('Údaje o uchádzačoch'!C42=\"\",\"\",'Údaje o uchádzačoch'!C42)","v":""},{"$f":"IF('Údaje o uchádzačoch'!D42=\"\",\"\",'Údaje o uchádzačoch'!D42)","v":""},{"$nulls":6},{"$f":"IF('Údaje o uchádzačoch'!L42=\"\",\"\",'Údaje o uchádzačoch'!L42)","v":""},{"$f":"IF('Údaje o uchádzačoch'!M42=\"\",\"\",'Údaje o uchádzačoch'!M42)","v":""}]
[{"$f":"IF('Údaje o uchádzačoch'!A43=\"\",\"\",'Údaje o uchádzačoch'!A43)","v":""},{"$f":"IF('Údaje o uchádzačoch'!B43=\"\",\"\",'Údaje o uchádzačoch'!B43)","v":""},{"$f":"IF('Údaje o uchádzačoch'!C43=\"\",\"\",'Údaje o uchádzačoch'!C43)","v":""},{"$f":"IF('Údaje o uchádzačoch'!D43=\"\",\"\",'Údaje o uchádzačoch'!D43)","v":""},{"$nulls":6},{"$f":"IF('Údaje o uchádzačoch'!L43=\"\",\"\",'Údaje o uchádzačoch'!L43)","v":""},{"$f":"IF('Údaje o uchádzačoch'!M43=\"\",\"\",'Údaje o uchádzačoch'!M43)","v":""}]
[{"$f":"IF('Údaje o uchádzačoch'!A44=\"\",\"\",'Údaje o uchádzačoch'!A44)","v":""},{"$f":"IF('Údaje o uchádzačoch'!B44=\"\",\"\",'Údaje o uchádzačoch'!B44)","v":""},{"$f":"IF('Údaje o uchádzačoch'!C44=\"\",\"\",'Údaje o uchádzačoch'!C44)","v":""},{"$f":"IF('Údaje o uchádzačoch'!D44=\"\",\"\",'Údaje o uchádzačoch'!D44)","v":""},{"$nulls":6},{"$f":"IF('Údaje o uchádzačoch'!L44=\"\",\"\",'Údaje o uchádzačoch'!L44)","v":""},{"$f":"IF('Údaje o uchádzačoch'!M44=\"\",\"\",'Údaje o uchádzačoch'!M44)","v":""}]
[{"$f":"IF('Údaje o uchádzačoch'!A45=\"\",\"\",'Údaje o uchádzačoch'!A45)","v":""},{"$f":"IF('Údaje o uchádzačoch'!B45=\"\",\"\",'Údaje o uchádzačoch'!B45)","v":""},{"$f":"IF('Údaje o uchádzačoch'!C45=\"\",\"\",'Údaje o uchádzačoch'!C45)","v":""},{"$f":"IF('Údaje o uchádzačoch'!D45=\"\",\"\",'Údaje o uchádzačoch'!D45)","v":""},{"$nulls":6},{"$f":"IF('Údaje o uchádzačoch'!L45=\"\",\"\",'Údaje o uchádzačoch'!L45)","v":""},{"$f":"IF('Údaje o uchádzačoch'!M45=\"\",\"\",'Údaje o uchádzačoch'!M45)","v":""}]
[{"$f":"IF('Údaje o uchádzačoch'!A46=\"\",\"\",'Údaje o uchádzačoch'!A46)","v":""},{"$f":"IF('Údaje o uchádzačoch'!B46=\"\",\"\",'Údaje o uchádzačoch'!B46)","v":""},{"$f":"IF('Údaje o uchádzačoch'!C46=\"\",\"\",'Údaje o uchádzačoch'!C46)","v":""},{"$f":"IF('Údaje o uchádzačoch'!D46=\"\",\"\",'Údaje o uchádzačoch'!D46)","v":""},{"$nulls":6},{"$f":"IF('Údaje o uchádzačoch'!L46=\"\",\"\",'Údaje o uchádzačoch'!L46)","v":""},{"$f":"IF('Údaje o uchádzačoch'!M46=\"\",\"\",'Údaje o uchádzačoch'!M46)","v":""}]
[{"$f":"IF('Údaje o uchádzačoch'!A47=\"\",\"\",'Údaje o uchádzačoch'!A47)","v":""},{"$f":"IF('Údaje o uchádzačoch'!B47=\"\",\"\",'Údaje o uchádzačoch'!B47)","v":""},{"$f":"IF('Údaje o uchádzačoch'!C47=\"\",\"\",'Údaje o uchádzačoch'!C47)","v":""},{"$f":"IF('Údaje o uchádzačoch'!D47=\"\",\"\",'Údaje o uchádzačoch'!D47)","v":""},{"$nulls":6},{"$f":"IF('Údaje o uchádzačoch'!L47=\"\",\"\",'Údaje o uchádzačoch'!L47)","v":""},{"$f":"IF('Údaje o uchádzačoch'!M47=\"\",\"\",'Údaje o uchádzačoch'!M47)","v":""}]
[{"$f":"IF('Údaje o uchádzačoch'!A48=\"\",\"\",'Údaje o uchádzačoch'!A48)","v":""},{"$f":"IF('Údaje o uchádzačoch'!B48=\"\",\"\",'Údaje o uchádzačoch'!B48)","v":""},{"$f":"IF('Údaje o uchádzačoch'!C48=\"\",\"\",'Údaje o uchádzačoch'!C48)","v":""},{"$f":"IF('Údaje o uchádzačoch'!D48=\"\",\"\",'Údaje o uchádzačoch'!D48)","v":""},{"$nulls":6},{"$f":"IF('Údaje o uchádzačoch'!L48=\"\",\"\",'Údaje o uchádzačoch'!L48)","v":""},{"$f":"IF('Údaje o uchádzačoch'!M48=\"\",\"\",'Údaje o uchádzačoch'!M48)","v":""}]
[{"$f":"IF('Údaje o uchádzačoch'!A49=\"\",\"\",'Údaje o uchádzačoch'!A49)","v":""},{"$f":"IF('Údaje o uchádzačoch'!B49=\"\",\"\",'Údaje o uchádzačoch'!B49)","v":""},{"$f":"IF('Údaje o uchádzačoch'!C49=\"\",\"\",'Údaje o uchádzačoch'!C49)","v":""},{"$f":"IF('Údaje o uchádzačoch'!D49=\"\",\"\",'Údaje o uchádzačoch'!D49)","v":""},{"$nulls":6},{"$f":"IF('Údaje o uchádzačoch'!L49=\"\",\"\",'Údaje o uchádzačoch'!L49)","v":""},{"$f":"IF('Údaje o uchádzačoch'!M49=\"\",\"\",'Údaje o uchádzačoch'!M49)","v":""}]
[{"$f":"IF('Údaje o uchádzačoch'!A50=\"\",\"\",'Údaje o uchádzačoch'!A50)","v":""},{"$f":"IF('Údaje o uchádzačoch'!B50=\"\",\"\",'Údaje o uchádzačoch'!B50)","v":""},{"$f":"IF('Údaje o uchádzačoch'!C50=\"\",\"\",'Údaje o uchádzačoch'!C50)","v":""},{"$f":"IF('Údaje o uchádzačoch'!D50=\"\",\"\",'Údaje o uchádzačoch'!D50)","v":""},{"$nulls":6},{"$f":"IF('Údaje o uchádzačoch'!L50=\"\",\"\",'Údaje o uchádzačoch'!L50)","v":""},{"$f":"IF('Údaje o uchádzačoch'!M50=\"\",\"\",'Údaje o uchádzačoch'!M50)","v":""}]
[{"$f":"IF('Údaje o uchádzačoch'!A51=\"\",\"\",'Údaje o uchádzačoch'!A51)","v":""},{"$f":"IF('Údaje o uchádzačoch'!B51=\"\",\"\",'Údaje o uchádzačoch'!B51)","v":""},{"$f":"IF('Údaje o uchádzačoch'!C51=\"\",\"\",'Údaje o uchádzačoch'!C51)","v":""},{"$f":"IF('Údaje o uchádzačoch'!D51=\"\",\"\",'Údaje o uchádzačoch'!D51)","v":""},{"$nulls":6},{"$f":"IF('Údaje o uchádzačoch'!L51=\"\",\"\",'Údaje o uchádzačoch'!L51)","v":""},{"$f":"IF('Údaje o uchádzačoch'!M51=\"\",\"\",'Údaje o uchádzačoch'!M51)","v":""}]
[{"$f":"IF('Údaje o uchádzačoch'!A52=\"\",\"\",'Údaje o uchádzačoch'!A52)","v":""},{"$f":"IF('Údaje o uchádzačoch'!B52=\"\",\"\",'Údaje o uchádzačoch'!B52)","v":""},{"$f":"IF('Údaje o uchádzačoch'!C52=\"\",\"\",'Údaje o uchádzačoch'!C52)","v":""},{"$f":"IF('Údaje o uchádzačoch'!D52=\"\",\"\",'Údaje o uchádzačoch'!D52)","v":""},{"$nulls":6},{"$f":"IF('Údaje o uchádzačoch'!L52=\"\",\"\",'Údaje o uchádzačoch'!L52)","v":""},{"$f":"IF('Údaje o uchádzačoch'!M52=\"\",\"\",'Údaje o uchádzačoch'!M52)","v":""}]
[{"$f":"IF('Údaje o uchádzačoch'!A53=\"\",\"\",'Údaje o uchádzačoch'!A53)","v":""},{"$f":"IF('Údaje o uchádzačoch'!B53=\"\",\"\",'Údaje o uchádzačoch'!B53)","v":""},{"$f":"IF('Údaje o uchádzačoch'!C53=\"\",\"\",'Údaje o uchádzačoch'!C53)","v":""},{"$f":"IF('Údaje o uchádzačoch'!D53=\"\",\"\",'Údaje o uchádzačoch'!D53)","v":""},{"$nulls":6},{"$f":"IF('Údaje o uchádzačoch'!L53=\"\",\"\",'Údaje o uchádzačoch'!L53)","v":""},{"$f":"IF('Údaje o uchádzačoch'!M53=\"\",\"\",'Údaje o uchádzačoch'!M53)","v":""}]
[{"$f":"IF('Údaje o uchádzačoch'!A54=\"\",\"\",'Údaje o uchádzačoch'!A54)","v":""},{"$f":"IF('Údaje o uchádzačoch'!B54=\"\",\"\",'Údaje o uchádzačoch'!B54)","v":""},{"$f":"IF('Údaje o uchádzačoch'!C54=\"\",\"\",'Údaje o uchádzačoch'!C54)","v":""},{"$f":"IF('Údaje o uchádzačoch'!D54=\"\",\"\",'Údaje o uchádzačoch'!D54)","v":""},{"$nulls":6},{"$f":"IF('Údaje o uchádzačoch'!L54=\"\",\"\",'Údaje o uchádzačoch'!L54)","v":""},{"$f":"IF('Údaje o uchádzačoch'!M54=\"\",\"\",'Údaje o uchádzačoch'!M54)","v":""}]
[{"$f":"IF('Údaje o uchádzačoch'!A55=\"\",\"\",'Údaje o uchádzačoch'!A55)","v":""},{"$f":"IF('Údaje o uchádzačoch'!B55=\"\",\"\",'Údaje o uchádzačoch'!B55)","v":""},{"$f":"IF('Údaje o uchádzačoch'!C55=\"\",\"\",'Údaje o uchádzačoch'!C55)","v":""},{"$f":"IF('Údaje o uchádzačoch'!D55=\"\",\"\",'Údaje o uchádzačoch'!D55)","v":""},{"$nulls":6},{"$f":"IF('Údaje o uchádzačoch'!L55=\"\",\"\",'Údaje o uchádzačoch'!L55)","v":""},{"$f":"IF('Údaje o uchádzačoch'!M55=\"\",\"\",'Údaje o uchádzačoch'!M55)","v":""}]
[{"$f":"IF('Údaje o uchádzačoch'!A56=\"\",\"\",'Údaje o uchádzačoch'!A56)","v":""},{"$f":"IF('Údaje o uchádzačoch'!B56=\"\",\"\",'Údaje o uchádzačoch'!B56)","v":""},{"$f":"IF('Údaje o uchádzačoch'!C56=\"\",\"\",'Údaje o uchádzačoch'!C56)","v":""},{"$f":"IF('Údaje o uchádzačoch'!D56=\"\",\"\",'Údaje o uchádzačoch'!D56)","v":""},{"$nulls":6},{"$f":"IF('Údaje o uchádzačoch'!L56=\"\",\"\",'Údaje o uchádzačoch'!L56)","v":""},{"$f":"IF('Údaje o uchádzačoch'!M56=\"\",\"\",'Údaje o uchádzačoch'!M56)","v":""}]
[{"$f":"IF('Údaje o uchádzačoch'!A57=\"\",\"\",'Údaje o uchádzačoch'!A57)","v":""},{"$f":"IF('Údaje o uchádzačoch'!B57=\"\",\"\",'Údaje o uchádzačoch'!B57)","v":""},{"$f":"IF('Údaje o uchádzačoch'!C57=\"\",\"\",'Údaje o uchádzačoch'!C57)","v":""},{"$f":"IF('Údaje o uchádzačoch'!D57=\"\",\"\",'Údaje o uchádzačoch'!D57)","v":""},{"$nulls":6},{"$f":"IF('Údaje o uchádzačoch'!L57=\"\",\"\",'Údaje o uchádzačoch'!L57)","v":""},{"$f":"IF('Údaje o uchádzačoch'!M57=\"\",\"\",'Údaje o uchádzačoch'!M57)","v":""}]
[{"$f":"IF('Údaje o uchádzačoch'!A58=\"\",\"\",'Údaje o uchádzačoch'!A58)","v":""},{"$f":"IF('Údaje o uchádzačoch'!B58=\"\",\"\",'Údaje o uchádzačoch'!B58)","v":""},{"$f":"IF('Údaje o uchádzačoch'!C58=\"\",\"\",'Údaje o uchádzačoch'!C58)","v":""},{"$f":"IF('Údaje o uchádzačoch'!D58=\"\",\"\",'Údaje o uchádzačoch'!D58)","v":""},{"$nulls":6},{"$f":"IF('Údaje o uchádzačoch'!L58=\"\",\"\",'Údaje o uchádzačoch'!L58)","v":""},{"$f":"IF('Údaje o uchádzačoch'!M58=\"\",\"\",'Údaje o uchádzačoch'!M58)","v":""}]
[{"$f":"IF('Údaje o uchádzačoch'!A59=\"\",\"\",'Údaje o uchádzačoch'!A59)","v":""},{"$f":"IF('Údaje o uchádzačoch'!B59=\"\",\"\",'Údaje o uchádzačoch'!B59)","v":""},{"$f":"IF('Údaje o uchádzačoch'!C59=\"\",\"\",'Údaje o uchádzačoch'!C59)","v":""},{"$f":"IF('Údaje o uchádzačoch'!D59=\"\",\"\",'Údaje o uchádzačoch'!D59)","v":""},{"$nulls":6},{"$f":"IF('Údaje o uchádzačoch'!L59=\"\",\"\",'Údaje o uchádzačoch'!L59)","v":""},{"$f":"IF('Údaje o uchádzačoch'!M59=\"\",\"\",'Údaje o uchádzačoch'!M59)","v":""}]